bitfinex/quotes_ETHUSD_20230902
["timestamp","ask_amount","ask_price","bid_price","bid_amount"]
[1693665997721,3.8591,1639.5,1639.0,1.69943333]
[1693665998038,3.0,1639.4,1639.0,1.69943333]
[1693665998204,3.0,1639.4,1639.0,5.21823333]
[1693665998407,3.0,1639.4,1639.1,1.06014925]
[1693666000546,4.551,1639.4,1639.1,1.06014925]
[1693666001947,3.0,1639.4,1639.1,1.06014925]
[1693666002817,3.0,1639.4,1639.0,4.29159841]
[1693666007849,0.34484919,1639.3,1639.0,4.29159841]
[1693666008049,3.0,1639.4,1639.1,0.42915984]
[1693666012674,5.40967479,1639.5,1639.1,0.42915984]
[1693666012969,0.57727479,1639.5,1639.1,2.12833521]
[1693666013151,0.57727479,1639.5,1639.2,1.06002036]
[1693666013347,0.101,1639.5,1639.3,3.08185404]
[1693666013561,0.101,1639.5,1639.4,0.3081854]
[1693666013963,0.44600614,1639.5,1639.4,0.3081854]
[1693666014142,0.44600614,1639.5,1639.4,3.39003944]
[1693666014552,0.44600614,1639.5,1639.4,0.3081854]
[1693666014744,0.101,1639.5,1639.4,0.3081854]
[1693666014944,0.101,1639.5,1639.2,8.68539791]
[1693666015156,0.445958,1639.5,1639.3,1.05994073]
[1693666015474,0.101,1639.5,1639.3,1.05994073]
[1693666016080,0.101,1639.5,1639.3,1.69773864]
[1693666016581,0.101,1639.5,1639.4,1.05992698]
[1693666016780,0.101,1639.5,1639.2,6.51314882]
[1693666016781,0.34393377,1639.4,1639.2,6.51314882]
[1693666016977,0.34393377,1639.4,1639.3,1.71125378]
[1693666017151,0.34393377,1639.4,1639.3,2.34905169]
[1693666019051,0.101,1639.5,1639.3,2.34905169]
[1693666019378,0.101,1639.5,1639.4,1.0599389]
[1693666019985,0.101,1639.5,1639.4,1.69773681]
[1693666020279,0.101,1639.5,1639.4,2.02831167]
[1693666021755,0.101,1639.5,1639.4,1.39051376]
[1693666022379,0.101,1639.5,1639.4,2.02831167]
[1693666022677,0.101,1639.5,1639.4,1.39051376]
[1693666022883,0.101,1639.5,1639.4,2.02831167]
[1693666025496,0.101,1639.5,1639.2,1.59449478]
[1693666025708,0.101,1639.5,1639.2,0.63779791]
[1693666025866,1.941,1639.5,1639.3,1.06002208]
[1693666026197,1.941,1639.5,1639.2,1.59449478]
[1693666026406,1.941,1639.5,1639.2,2.65451542]
[1693666026590,0.33313769,1639.4,1639.2,3.27408253]
[1693666026902,0.33313769,1639.4,1639.3,1.06002064]
[1693666027088,0.33313769,1639.4,1639.3,1.69781855]
[1693666027282,0.33313769,1639.4,1639.3,1.06002064]
[1693666027488,0.33313769,1639.4,1639.3,1.69781855]
[1693666027675,0.33313769,1639.4,1639.3,2.3052268]
[1693666032081,0.33313769,1639.4,1639.3,3.26192367]
[1693666033008,1e-08,1639.4,1639.3,2.62412576]
[1693666033307,0.32284749,1639.4,1639.3,2.62412576]
[1693666033486,0.32284749,1639.4,1639.3,3.26171276]
[1693666033691,0.32284749,1639.4,1639.3,3.2617091]
[1693666034416,0.32284749,1639.4,1639.3,2.62412576]
[1693666034720,0.32284749,1639.4,1639.3,3.26175495]
[1693666034914,0.32284749,1639.4,1639.3,2.62412576]
[1693666035110,0.32284749,1639.4,1639.3,3.261821]
[1693666035620,0.32284749,1639.4,1639.3,2.62412576]
[1693666036216,0.32284749,1639.4,1639.3,3.26193224]
[1693666036397,0.32284749,1639.4,1639.3,2.30523537]
[1693666037744,0.32284749,1639.4,1639.3,3.26193224]
[1693666037947,0.32284749,1639.4,1639.3,2.62412576]
[1693666040033,0.32284749,1639.4,1639.3,3.90035917]
[1693666041934,0.32284749,1639.4,1639.3,2.94302472]
[1693666042439,0.32284749,1639.4,1639.3,3.90082018]
[1693666043134,0.32284749,1639.4,1639.3,2.94302472]
[1693666045837,0.32284749,1639.4,1639.3,6.34377772]
[1693666046754,0.101,1639.5,1639.3,4.74928293]
[1693666046922,0.101,1639.5,1639.4,2.81197124]
[1693666047326,0.101,1639.5,1639.4,15.94719672]
[1693666047532,0.101,1639.6,1639.4,15.94719672]
[1693666047735,0.101,1639.6,1639.5,6.05526843]
[1693666048131,0.101,1639.6,1639.5,4.14187468]
[1693666048320,0.101,1639.6,1639.5,7.0082881]
[1693666048848,0.101,1639.6,1639.5,5.09489435]
[1693666051558,0.09851,1639.6,1639.5,5.57489435]
[1693666051942,0.09851,1639.6,1639.5,7.16912701]
[1693666052868,0.09851,1639.6,1639.5,7.16903513]
[1693666053027,1.9251,1639.9,1639.6,3.0]
[1693666053231,1.9251,1639.9,1639.8,0.63765374]
[1693666053444,0.101,1639.9,1639.8,0.63765374]
[1693666053851,0.101,1639.9,1639.8,1.06002064]
[1693666054050,0.101,1639.9,1639.8,0.63765374]
[1693666055145,0.101,1639.9,1639.8,1.69767438]
[1693666055350,0.101,1639.9,1639.8,0.63765374]
[1693666055872,0.101,1639.9,1639.8,1.59393696]
[1693666056079,0.101,1639.9,1639.8,1.98686347]
[1693666056241,0.101,1639.9,1639.8,8.49128181]
[1693666056442,0.101,1639.9,1639.8,8.81010868]
[1693666056740,0.101,1639.9,1639.8,10.40424946]
[1693666056935,0.101,1639.9,1639.8,2.72825464]
[1693666057182,0.101,1639.9,1639.8,3.68404673]
[1693666057353,0.39470921,1639.9,1639.8,3.68405203]
[1693666057764,0.39470921,1639.9,1639.8,2.72825464]
[1693666059057,1.61122854,1640.0,1639.8,2.72825464]
[1693666059277,0.27536078,1639.9,1639.8,1.668234]
[1693666059746,0.27536078,1639.9,1639.8,2.72786886]
[1693666061159,0.27536078,1639.9,1639.8,5.8097229]
[1693666061555,1.7934,1640.2,1639.8,5.8097229]
[1693666061857,1.7934,1640.2,1640.0,0.63687928]
[1693666062058,0.275533,1640.1,1640.0,1.69651414]
[1693666063284,0.275533,1640.1,1640.0,2.65183306]
[1693666063479,3.18379301,1640.6,1640.0,2.01495378]
[1693666063688,3.5839,1640.5,1640.2,0.63658268]
[1693666063979,3.5839,1640.5,1640.2,1.69621754]
[1693666064188,3.5839,1640.5,1640.3,1.05963486]
[1693666064356,3.5839,1640.5,1640.2,0.63658268]
[1693666064760,3.5839,1640.5,1640.3,1.05949006]
[1693666065072,3.5839,1640.5,1640.2,1.32900204]
[1693666065383,3.5839,1640.5,1640.2,3.34299521]
[1693666065580,3.5839,1640.5,1640.3,1.05949604]
[1693666065748,3.5839,1640.5,1640.2,0.63633142]
[1693666065954,3.5839,1640.5,1640.3,1.59082855]
[1693666066155,0.57851286,1640.7,1640.4,4.67268259]
[1693666066350,0.101,1640.7,1640.5,1.69576566]
[1693666066555,0.27563275,1640.6,1640.5,2.39624363]
[1693666066862,0.101,1640.7,1640.5,1.69576566]
[1693666067076,0.101,1640.7,1640.6,1.05943424]
[1693666067300,0.101,1640.7,1640.6,2.65026279]
[1693666067483,0.101,1640.7,1640.6,5.09578541]
[1693666067655,0.101,1640.7,1640.6,2.64916906]
[1693666067855,0.101,1640.7,1640.6,1.34668032]
[1693666068066,0.101,1640.7,1640.6,2.40611456]
[1693666068283,0.36984387,1640.7,1640.6,2.01393137]
[1693666068466,0.36984387,1640.7,1640.6,1.69433609]
[1693666068676,0.36984387,1640.7,1640.6,1.05943424]
[1693666069391,0.36984387,1640.7,1640.5,0.63490185]
[1693666069791,0.36984387,1640.7,1640.5,1.58939898]
[1693666069992,0.36984387,1640.7,1640.6,1.05943424]
[1693666070394,0.36984387,1640.7,1640.6,1.69433609]
[1693666070991,0.36984387,1640.7,1640.6,0.63490185]
[1693666072286,0.36984387,1640.7,1640.6,1.69433609]
[1693666073010,2.34088653,1640.8,1640.6,1.69433609]
[1693666073214,0.26883764,1640.7,1640.6,1.69433609]
[1693666074799,0.26883764,1640.7,1640.6,2.01393137]
[1693666075378,0.26883764,1640.7,1640.6,2.64812266]
[1693666075978,0.26883764,1640.7,1640.6,2.01393137]
[1693666076980,0.21883764,1640.7,1640.6,2.01393137]
[1693666077509,2.34088653,1640.8,1640.7,0.43767527]
[1693666077677,2.34088653,1640.8,1640.7,1.0718587]
[1693666078078,3.39706118,1640.8,1640.7,2.13129294]
[1693666078500,3.39706118,1640.8,1640.7,1.49710951]
[1693666078889,7.96800118,1640.8,1640.7,1.49710951]
[1693666079092,7.96800118,1640.8,1640.7,2.13129294]
[1693666079603,3.39706118,1640.8,1640.7,2.13129294]
[1693666080800,8.22002614,1640.8,1640.7,1.49710951]
[1693666081732,8.22002614,1640.8,1640.7,2.13129294]
[1693666082238,15.87282018,1640.8,1640.7,1.49710951]
[1693666082387,20.44376018,1640.8,1640.7,1.49710951]
[1693666082713,20.44376018,1640.8,1640.7,0.43767527]
[1693666083702,20.44376018,1640.8,1640.7,1.49713919]
[1693666084217,20.44376018,1640.8,1640.7,0.43767527]
[1693666084941,15.87282018,1640.8,1640.7,0.43767527]
[1693666085105,15.87282018,1640.8,1640.7,1.49714709]
[1693666086128,11.30188018,1640.8,1640.7,1.49714709]
[1693666086328,11.79947918,1640.8,1640.7,1.49714709]
[1693666086637,11.79947918,1640.8,1640.7,2.13133052]
[1693666091832,12.69192559,1640.8,1640.7,2.13133052]
[1693666092619,12.69192559,1640.8,1640.7,3.08582765]
[1693666092818,8.12098559,1640.8,1640.7,3.08582765]
[1693666093023,6.99098353,1640.8,1640.7,3.08582765]
[1693666094546,3.90912949,1640.8,1640.7,2.45164422]
[1693666094743,2.85295484,1640.8,1640.7,2.0282237]
[1693666095041,2.85295484,1640.8,1640.7,2.45164422]
[1693666095244,2.85295484,1640.8,1640.7,2.02827784]
[1693666095408,2.85295484,1640.8,1640.7,3.08774966]
[1693666095609,1.96050843,1640.8,1640.7,2.45164422]
[1693666095842,0.25202496,1640.8,1640.7,2.82407493]
[1693666096053,0.25202496,1640.8,1640.7,3.14224064]
[1693666096914,0.25202496,1640.8,1640.7,4.73306919]
[1693666097118,0.25202496,1640.8,1640.7,3.14224064]
[1693666097517,0.25202496,1640.8,1640.7,2.76980993]
[1693666097717,0.25202496,1640.8,1640.7,3.7240169]
[1693666098734,0.25202496,1640.8,1640.7,2.13348433]
[1693666098957,9.50575,1640.9,1640.7,2.13348433]
[1693666099124,9.50575,1640.9,1640.7,1.07401251]
[1693666099125,0.22732661,1640.8,1640.7,1.07401251]
[1693666099547,0.22732661,1640.8,1640.7,3.08757447]
[1693666099936,0.22732661,1640.8,1640.7,2.6498992]
[1693666100320,0.22732661,1640.8,1640.7,1.59054421]
[1693666100721,0.22732661,1640.8,1640.7,2.01356196]
[1693666100951,0.22732661,1640.8,1640.7,2.65019752]
[1693666101254,0.22732661,1640.8,1640.7,1.59084253]
[1693666101951,0.22732661,1640.8,1640.7,1.69599055]
[1693666102261,0.22732661,1640.8,1640.7,0.63663556]
[1693666102429,0.22732661,1640.8,1640.7,1.69599055]
[1693666102752,0.22732661,1640.8,1640.7,0.63663556]
[1693666102939,0.22732661,1640.8,1640.7,1.05935499]
[1693666103142,0.22732661,1640.8,1640.6,2.65019752]
[1693666103348,0.22732661,1640.8,1640.7,1.05935499]
[1693666103943,0.22732661,1640.8,1640.6,1.69599055]
[1693666104149,0.22732661,1640.8,1640.7,1.69599055]
[1693666104525,0.22732661,1640.8,1640.7,0.63663556]
[1693666104725,0.22732661,1640.8,1640.7,1.05935499]
[1693666105126,0.22732661,1640.8,1640.6,2.65019752]
[1693666105424,0.22732661,1640.8,1640.7,1.05935499]
[1693666105725,0.22732661,1640.8,1640.7,1.69599055]
[1693666105923,0.22732661,1640.8,1640.7,1.05935499]
[1693666106122,3.22732661,1640.8,1640.6,1.69594242]
[1693666106356,0.22732661,1640.8,1640.7,1.05930686]
[1693666112864,0.22732661,1640.8,1640.6,0.70003494]
[1693666114646,3.22732661,1640.8,1640.6,0.70003494]
[1693666114851,3.22732661,1640.8,1640.5,6.3236]
[1693666115052,3.22732661,1640.8,1640.5,4.7734]
[1693666115462,7.79826661,1640.8,1640.5,2.8]
[1693666115961,3.22732661,1640.8,1640.5,2.8]
[1693666119039,12.36974661,1640.8,1640.5,2.8]
[1693666119258,1.23697466,1640.7,1640.5,2.8]
[1693666119876,0.21753745,1640.6,1640.5,2.8]
[1693666120058,1.23697466,1640.7,1640.5,2.8]
[1693666120377,2.94807466,1640.7,1640.5,2.8]
[1693666120544,3.0,1640.6,1640.5,2.8]
[1693666121756,3.59480747,1640.6,1640.5,2.8]
[1693666124088,3.0,1640.6,1640.5,2.8]
[1693666127851,3.2175134,1640.6,1640.5,2.8]
[1693666133405,3.70461168,1640.6,1640.5,2.8]
[1693666136005,0.70461168,1640.6,1640.5,2.8]
[1693666138602,3.70461168,1640.6,1640.5,2.8]
[1693666138791,0.70461168,1640.6,1640.5,2.8]
[1693666155142,0.2175134,1640.6,1640.5,2.8]
[1693666155525,3.48036995,1640.8,1640.5,2.8]
[1693666156042,0.21727037,1640.6,1640.5,2.8]
[1693666156208,3.48036995,1640.8,1640.5,3.42877]
[1693666156604,6.56222399,1640.8,1640.5,2.8]
[1693666156831,11.13319399,1640.8,1640.5,2.8]
[1693666158043,0.21730832,1640.7,1640.5,2.8]
[1693666160868,7.87040236,1640.7,1640.5,2.8]
[1693666161036,3.0,1640.6,1640.5,2.8]
[1693666161369,4.08704024,1640.6,1640.5,2.8]
[1693666165147,3.0,1640.6,1640.5,2.8]
[1693666165471,1.99740832,1640.7,1640.5,2.8]
[1693666165472,3.21730832,1640.7,1640.5,2.8]
[1693666165671,0.21730832,1640.7,1640.5,2.8]
[1693666174493,0.21730832,1640.7,1640.5,2.7]
[1693666186104,0.21730832,1640.7,1640.3,4.59485596]
[1693666186305,0.21730832,1640.7,1640.4,1.51873531]
[1693666186508,0.21730832,1640.7,1640.4,0.4594856]
[1693666186802,0.21730832,1640.7,1640.4,2.15666108]
[1693666187007,0.21730832,1640.7,1640.5,1.0592331]
[1693666191100,0.21730832,1640.7,1640.3,1.59485596]
[1693666191416,0.21730832,1640.7,1640.4,1.05925829]
[1693666191621,0.21730832,1640.7,1640.3,0.63794238]
[1693666191919,0.21730832,1640.7,1640.3,1.69720509]
[1693666192520,0.21730832,1640.7,1640.2,2.62084238]
[1693666192714,1.7853,1640.6,1640.3,1.05933175]
[1693666192913,1.9905982,1640.6,1640.3,1.05933175]
[1693666193114,2.37293802,1640.6,1640.3,1.05933175]
[1693666205146,2.87204413,1640.6,1640.3,1.05933175]
[1693666210654,3.08185404,1640.5,1640.2,2.7]
[1693666210950,12.1441,1640.4,1640.2,2.7]
[1693666211153,1.21441,1640.3,1640.2,2.7]
[1693666212443,4.29626404,1640.3,1640.2,2.7]
[1693666212650,11.86859404,1640.3,1640.2,2.7]
[1693666214426,7.29626404,1640.3,1640.2,2.7]
[1693666217073,13.71326404,1640.3,1640.2,2.7]
[1693666217226,22.85792404,1640.3,1640.2,2.7]
[1693666217427,23.33792404,1640.3,1640.2,2.58274867]
[1693666217845,23.54176675,1640.3,1640.2,2.58274867]
[1693666218323,28.11409675,1640.3,1640.2,2.58274867]
[1693666218956,28.48722276,1640.3,1640.2,2.28207855]
[1693666220276,29.14550581,1640.3,1640.2,2.19721895]
[1693666220966,30.05573686,1640.3,1640.2,2.19721895]
[1693666222574,30.54038703,1640.3,1640.2,2.19721895]
[1693666223369,30.54038703,1640.3,1639.6,1.5965854]
[1693666223547,9.14651,1640.0,1639.6,1.69843994]
[1693666223750,12.22836404,1640.0,1639.7,1.05980578]
[1693666223965,6.08185404,1639.9,1639.6,0.63863416]
[1693666224167,9.14744,1639.8,1639.6,1.5965854]
[1693666224363,3.0,1639.7,1639.6,1.69844511]
[1693666224570,1.86953158,1639.7,1639.6,1.69844511]
[1693666224945,1.86953158,1639.7,1639.6,2.01776219]
[1693666225149,6.36126818,1639.7,1639.6,1.69634929]
[1693666225356,10.93526818,1639.7,1639.6,1.05981095]
[1693666225554,10.93526818,1639.7,1639.5,0.63653834]
[1693666225757,3.08185404,1639.6,1639.5,0.63653834]
[1693666226672,6.08185404,1639.6,1639.5,0.63653834]
[1693666226872,7.47538086,1639.6,1639.5,0.63653834]
[1693666227207,7.47538086,1639.6,1639.5,2.65430053]
[1693666227503,16.62394086,1639.6,1639.5,1.69634929]
[1693666227648,21.19822086,1639.6,1639.5,1.69634929]
[1693666228250,21.19822086,1639.6,1639.5,0.63653834]
[1693666228584,12.04966086,1639.6,1639.5,0.63653834]
[1693666228948,12.04966086,1639.6,1639.5,2.65430053]
[1693666229864,12.04966086,1639.6,1639.5,2.01776219]
[1693666230884,12.04966086,1639.6,1639.5,3.29503051]
[1693666231054,23.04094086,1639.6,1639.5,3.29503051]
[1693666231257,16.77068375,1639.6,1639.5,3.29503051]
[1693666231469,16.77068375,1639.6,1639.5,2.01776219]
[1693666231986,16.77068375,1639.6,1639.5,3.29503051]
[1693666232150,16.77068375,1639.6,1639.5,2.33707927]
[1693666232355,16.77068375,1639.6,1639.5,2.34055901]
[1693666232554,16.77068375,1639.6,1639.5,3.29430352]
[1693666232793,16.77068375,1639.6,1639.5,2.34055901]
[1693666239330,16.77068375,1639.6,1639.5,3.93714441]
[1693666240123,17.70186414,1639.6,1639.5,3.93714441]
[1693666244133,17.70186414,1639.6,1639.5,2.65987609]
[1693666244498,16.57121875,1639.6,1639.5,2.65987609]
[1693666244698,16.57121875,1639.6,1639.5,2.87208187]
[1693666244899,16.57121875,1639.6,1639.5,3.93189282]
[1693666245142,16.57121875,1639.6,1639.5,2.65987609]
[1693666246140,17.95710362,1639.6,1639.5,2.65987609]
[1693666247239,17.95710362,1639.6,1639.5,2.87235317]
[1693666247430,17.95710362,1639.6,1639.5,3.93216412]
[1693666248233,17.95710362,1639.6,1639.5,2.65987609]
[1693666250616,27.58566362,1639.6,1639.5,0.95836214]
[1693666250807,27.9819208,1639.6,1639.5,1.17546931]
[1693666251013,27.9819208,1639.6,1639.5,1.69660245]
[1693666251213,27.9819208,1639.6,1639.5,0.6367915]
[1693666251412,27.9819208,1639.6,1639.5,0.6401374]
[1693666253757,27.9819208,1639.6,1639.5,0.1525374]
[1693666253959,27.9819208,1639.6,1639.5,1.06315685]
[1693666254257,28.64020385,1639.6,1639.5,1.06315685]
[1693666254854,28.64020385,1639.6,1639.5,0.0033459]
[1693666255446,28.64020385,1639.6,1639.0,0.1]
[1693666255447,9.417,1639.5,1639.3,2.86933618]
[1693666255623,27.64507404,1639.4,1639.3,2.86933618]
[1693666255829,27.64507404,1639.4,1639.3,2.65428093]
[1693666256334,27.64507404,1639.4,1639.3,1.5973075]
[1693666257272,27.64507404,1639.4,1639.3,2.65751277]
[1693666257635,27.64507404,1639.4,1639.3,1.5973075]
[1693666258458,27.64507404,1639.4,1639.3,2.87341266]
[1693666258766,27.64507404,1639.4,1639.3,2.33954227]
[1693666259076,27.64507404,1639.4,1639.3,2.87341266]
[1693666259278,27.64507404,1639.4,1639.3,2.33954227]
[1693666259763,27.64507404,1639.4,1639.3,1.279337]
[1693666259942,27.64507404,1639.4,1639.3,2.33954227]
[1693666260145,27.64507404,1639.4,1639.3,1.279337]
[1693666260961,27.64507404,1639.4,1639.3,2.33954227]
[1693666261162,27.64507404,1639.4,1639.3,1.279337]
[1693666262656,27.64507404,1639.4,1639.3,2.33954227]
[1693666262856,27.64507404,1639.4,1639.3,1.279337]
[1693666263447,27.64507404,1639.4,1639.3,2.01820349]
[1693666263448,28.05165354,1639.4,1639.3,2.01820349]
[1693666263752,28.05165354,1639.4,1639.3,1.69876314]
[1693666264066,28.05165354,1639.4,1639.3,2.24657752]
[1693666264248,27.41544343,1639.4,1639.3,1.88567752]
[1693666264595,27.41544343,1639.4,1639.1,1.59407566]
[1693666264596,9.417,1639.2,1639.1,1.59407566]
[1693666264793,30.16675404,1639.2,1639.1,1.59407566]
[1693666264947,29.03570435,1639.2,1639.1,1.06035908]
[1693666266185,29.03570435,1639.2,1639.1,0.85904249]
[1693666266481,29.51570435,1639.2,1639.1,0.85904249]
[1693666267074,23.22505404,1639.2,1639.1,0.80756569]
[1693666267250,3.08185404,1639.2,1639.1,1.59407566]
[1693666267456,3.08185404,1639.2,1639.1,1.59761822]
[1693666268752,3.08185404,1639.2,1639.1,0.00354256]
[1693666270008,6.08185404,1639.2,1639.1,0.00354256]
[1693666273308,6.08185404,1639.2,1639.1,0.96135612]
[1693666274293,6.08185404,1639.2,1639.1,1.59989306]
[1693666275108,6.08185404,1639.2,1639.1,0.6420795]
[1693666275979,6.26655877,1639.2,1639.1,0.6420795]
[1693666276827,6.26655877,1639.2,1639.1,0.00354256]
[1693666279241,3.18470473,1639.2,1639.1,0.00354256]
[1693666279739,0.67876532,1639.2,1639.1,0.00354256]
[1693666280238,0.18470473,1639.2,1639.1,0.00354256]
[1693666286156,3.18470473,1639.2,1639.1,0.00354256]
[1693666289424,22.61034324,1639.2,1639.1,0.00354256]
[1693666289648,27.18574324,1639.2,1639.1,0.00354256]
[1693666289846,22.61034324,1639.2,1639.1,0.00354256]
[1693666290444,22.61034324,1639.2,1639.0,0.1]
[1693666290722,7.65753404,1639.1,1639.0,0.1]
[1693666290921,10.65753404,1639.1,1639.0,0.1]
[1693666291940,6.08185404,1639.1,1639.0,0.1]
[1693666292146,10.65753404,1639.1,1639.0,0.1]
[1693666295077,13.09133636,1639.1,1639.0,0.1]
[1693666296667,28.65969636,1639.1,1639.0,0.1]
[1693666296988,16.50833636,1639.1,1639.0,0.1]
[1693666297147,16.98833636,1639.1,1639.0,0.1]
[1693666297955,5.99565636,1639.1,1639.0,0.1]
[1693666298176,6.08185404,1639.1,1639.0,0.1]
[1693666308774,3.0,1639.1,1639.0,0.1]
[1693666309383,3.66894907,1639.2,1639.0,0.1]
[1693666309588,6.75080311,1639.2,1639.0,0.1]
[1693666311479,3.66894907,1639.2,1639.0,0.1]
[1693666316603,8.24438907,1639.2,1639.0,0.1]
[1693666316903,17.27470469,1639.2,1639.0,0.1]
[1693666317091,3.08185404,1639.1,1639.0,0.1]
[1693666317301,10.65753404,1639.1,1639.0,0.1]
[1693666321307,6.08185404,1639.1,1639.0,0.1]
[1693666321475,10.65753404,1639.1,1639.0,0.1]
[1693666321681,13.20901451,1639.1,1639.0,0.1]
[1693666323779,8.63333451,1639.1,1639.0,0.1]
[1693666326694,13.20901451,1639.1,1639.0,0.1]
[1693666327599,28.77737451,1639.1,1639.0,0.1]
[1693666327902,24.20169451,1639.1,1639.0,0.1]
[1693666331057,19.62601451,1639.1,1639.0,0.1]
[1693666332651,3.0,1639.1,1639.0,9.25192]
[1693666332795,3.66894907,1639.2,1639.0,4.67596]
[1693666332995,6.26655877,1639.2,1639.0,4.67596]
[1693666334231,10.84196877,1639.2,1639.0,4.67596]
[1693666335107,9.49885404,1639.1,1639.0,0.1]
[1693666335347,28.40933192,1639.1,1639.0,0.1]
[1693666339057,28.88933192,1639.1,1639.0,0.1]
[1693666344759,28.88933192,1639.1,1638.7,0.95375478]
[1693666345062,6.417,1638.9,1638.7,0.95375478]
[1693666345229,6.08185404,1638.8,1638.7,0.95375478]
[1693666345662,6.08185404,1638.8,1638.7,5.53042478]
[1693666356908,7.01094647,1638.8,1638.7,0.95375478]
[1693666357708,15.22836812,1638.8,1638.7,0.95375478]
[1693666358052,19.80487812,1638.8,1638.7,0.95375478]
[1693666358256,15.22836812,1638.8,1638.7,0.95375478]
[1693666363379,15.72803822,1638.8,1638.7,0.95375478]
[1693666365009,15.72803822,1638.8,1638.6,9.73591192]
[1693666365396,15.72803822,1638.8,1638.7,0.95375478]
[1693666370423,15.72803822,1638.8,1638.6,9.73591192]
[1693666370623,15.72803822,1638.8,1638.7,0.95375478]
[1693666371056,15.72803822,1638.8,1638.6,9.73591192]
[1693666371553,15.72803822,1638.8,1638.7,0.95375478]
[1693666374753,15.72803822,1638.8,1638.6,9.73591192]
[1693666374929,15.72803822,1638.8,1638.7,0.95375478]
[1693666376145,15.72803822,1638.8,1638.6,5.76979988]
[1693666376354,15.72803822,1638.8,1638.7,0.95375478]
[1693666376883,15.72803822,1638.8,1638.6,5.76979988]
[1693666377231,15.72803822,1638.8,1638.7,4.57679]
[1693666377973,15.72803822,1638.8,1638.7,5.53054478]
[1693666379774,4.42876253,1638.8,1638.7,15.29495274]
[1693666380177,3.4996701,1638.8,1638.7,15.29495274]
[1693666380343,0.4996701,1638.8,1638.7,15.29495274]
[1693666380681,6.60293473,1639.2,1638.9,0.95375478]
[1693666380880,9.49885404,1639.1,1638.9,0.95375478]
[1693666381032,11.56659692,1639.1,1638.9,0.95375478]
[1693666382035,3.0,1639.0,1638.9,0.95375478]
[1693666382235,6.08185404,1639.0,1638.9,0.95375478]
[1693666383436,3.0,1639.0,1638.9,1.56458274]
[1693666383772,3.67027136,1639.2,1638.9,1.56458274]
[1693666383978,3.08185404,1639.1,1638.9,1.56458274]
[1693666384151,3.0,1639.0,1638.9,1.56458274]
[1693666384390,3.0,1639.0,1638.9,10.71703274]
[1693666387354,3.0,1639.0,1638.9,6.14079274]
[1693666387687,3.0,1639.0,1638.9,5.52996478]
[1693666392551,3.0,1639.0,1638.9,7.33714322]
[1693666392739,0.67027136,1639.2,1638.9,7.33714322]
[1693666392936,0.18470473,1639.2,1638.9,16.48962322]
[1693666406318,3.08185404,1639.1,1638.9,5.52996478]
[1693666406514,3.0,1639.0,1638.9,5.52996478]
[1693666410318,3.0,1639.0,1638.9,10.10620478]
[1693666418338,3.0,1639.0,1638.9,10.71703274]
[1693666418894,6.1892322,1639.3,1638.9,10.71703274]
[1693666419094,3.08185404,1639.2,1638.9,10.71703274]
[1693666419345,3.08185404,1639.2,1638.9,11.97446601]
[1693666419524,3.0,1639.1,1638.9,11.97446601]
[1693666422997,3.0,1639.1,1638.9,16.55070601]
[1693666429486,3.0,1639.1,1638.9,15.29327274]
[1693666433455,3.0,1639.1,1638.9,10.10620478]
[1693666434253,3.49661067,1639.1,1638.9,10.10620478]
[1693666441888,11.15414471,1639.1,1638.9,0.95375478]
[1693666442039,6.57846471,1639.1,1638.9,0.95375478]
[1693666442244,0.65784647,1639.0,1638.9,10.10617478]
[1693666442471,0.65784647,1639.0,1638.9,0.95375478]
[1693666442472,3.08185404,1639.0,1638.9,0.95375478]
[1693666442661,6.08185404,1639.0,1638.9,10.10623478]
[1693666443580,6.08185404,1639.0,1638.9,5.52999478]
[1693666444744,6.08185404,1639.0,1638.9,10.10623478]
[1693666444954,6.08185404,1639.0,1638.9,5.52999478]
[1693666445269,7.37669451,1639.0,1638.9,5.52999478]
[1693666446447,7.37669451,1639.0,1638.9,0.95375478]
[1693666446779,11.95265451,1639.0,1638.9,0.95375478]
[1693666447798,7.37669451,1639.0,1638.9,0.95375478]
[1693666448282,11.95265451,1639.0,1638.9,0.95375478]
[1693666452104,7.37669451,1639.0,1638.9,0.95375478]
[1693666456367,11.95265451,1639.0,1638.9,0.95375478]
[1693666465211,16.52861451,1639.0,1638.9,0.95375478]
[1693666469213,11.95265451,1639.0,1638.9,0.95375478]
[1693666481339,11.95265451,1639.0,1638.8,4.5765]
[1693666481545,6.08185404,1638.9,1638.8,4.5765]
[1693666489675,7.27711949,1638.9,1638.7,0.95375478]
[1693666489827,11.85335949,1638.9,1638.7,0.95375478]
[1693666491562,16.42959949,1638.9,1638.7,0.95375478]
[1693666491939,11.85335949,1638.9,1638.7,0.95375478]
[1693666492135,16.42959949,1638.9,1638.7,0.95375478]
[1693666492660,11.85335949,1638.9,1638.7,0.95375478]
[1693666496154,12.33741272,1638.9,1638.7,0.95375478]
[1693666497228,12.33741272,1638.9,1638.7,5.53052478]
[1693666499568,16.91365272,1638.9,1638.7,0.95375478]
[1693666499770,1.69136527,1638.8,1638.7,0.95375478]
[1693666499981,3.08185404,1638.8,1638.7,0.95375478]
[1693666500173,6.08185404,1638.8,1638.7,0.95375478]
[1693666501406,10.65836404,1638.8,1638.7,0.95375478]
[1693666514869,10.65836404,1638.8,1638.6,4.6769]
[1693666515070,6.08185404,1638.7,1638.6,4.6769]
[1693666543970,7.32213044,1638.7,1638.6,4.6769]
[1693666553529,4.32213044,1638.7,1638.6,4.6769]
[1693666554484,6.08185404,1638.7,1638.6,4.6769]
[1693666554987,3.08185404,1638.7,1638.6,4.6769]
[1693666557194,3.08185404,1638.7,1638.6,5.28772796]
[1693666579482,3.56836562,1638.7,1638.6,5.28772796]
[1693666579843,3.08185404,1638.7,1638.6,5.28772796]
[1693666584489,4.57651,1638.8,1638.7,0.95375478]
[1693666584784,8.18305,1639.3,1638.9,0.95375478]
[1693666585008,12.23288404,1639.2,1638.9,1.56458274]
[1693666586050,3.0,1639.1,1638.9,6.14058274]
[1693666586256,3.08185404,1639.0,1638.9,6.14058274]
[1693666587572,8.57121279,1639.0,1638.7,7.45822478]
[1693666587792,13.14717279,1639.0,1638.7,7.45822478]
[1693666588087,13.14717279,1639.0,1638.7,3.49238274]
[1693666588389,17.72313279,1639.0,1638.7,1.56458274]
[1693666588760,13.14717279,1639.0,1638.7,6.14134274]
[1693666589454,3.08185404,1639.0,1638.9,9.15248]
[1693666589651,3.08185404,1639.0,1638.9,9.76330796]
[1693666590290,3.08185404,1639.0,1638.9,5.18706796]
[1693666599494,7.65781404,1639.0,1638.7,2.76085478]
[1693666600032,12.23377404,1639.0,1638.7,2.76085478]